[Event "Calgary int."]
[Site "Calgary CAN"]
[Date "2025.08.01"]
[Round "4.8"]
[White "Iyer, Abhinav"]
[Black "Prianichnikov, Michael"]
[Result "1/2-1/2"]
[ECO "E63"]
[WhiteElo "1882"]
[BlackElo "1843"]
[WhiteFideId "-1"]
[WhiteFideId "-1"]
[PlyCount "79"]
[GameId "2206180843237376"]
[EventDate "2025.07.31"]
[EventType "swiss"]
[EventRounds "9"]
[EventCountry "CAN"]
[TimeControl "90+30"]

1. d4 {[%eval 17,0] [%emt 0:00:00]} Nf6 {[%eval 19,0] [%emt 0:00:00]} 2. c4 {[%eval 18,0] [%emt 0:00:00]} g6 {[%eval 28,0] [%emt 0:00:00]} 3. Nf3 {[%eval 22,0] [%emt 0:00:00]} Bg7 {[%eval 27,0] [%emt 0:00:00]} 4. g3 {[%eval 15,0] [%emt 0:00:00]} O-O {[%eval 21,0] [%emt 0:00:00]} 5. Bg2 {[%eval 1,0] [%emt 0:00:00]} d6 {[%eval 34,0] [%emt 0:00:00]} 6. Nc3 {[%eval 3,0] [%emt 0:00:00]} Nc6 {[%eval 47,0] [%emt 0:00:00]} 7. O-O {[%eval 32,0] [%emt 0:00:00]} a6 {[%eval 47,0] [%emt 0:00:00]} 8. h3 {[%eval 41,0] [%emt 0:00:00]} Re8 {[%eval 42,0] [%emt 0:00:00]} 9. e4 {[%eval 34,0] [%emt 0:00:00]} e5 {[%eval 38,0] [%emt 0:00:00]} 10. dxe5 {[%eval 39,0] [%emt 0:00:00]} dxe5 {[%eval 34,0] [%emt 0:00:00]} 11. Qxd8 {[%eval 3,0] [%emt 0:00:00]} Rxd8 {[%eval 37,0] [%emt 0:00:00]} 12. Bg5 {[%eval 38,0] [%emt 0:00:00]} Re8 {[%eval 46,0] [%emt 0:00:00]} 13. Rfe1 {[%eval 15,0] [%emt 0:00:00]} Nd4 {[%eval 28,0] [%emt 0:00:00]} 14. Bxf6 {[%eval 0,0] [%emt 0:00:00]} Bxf6 {[%eval 0,0] [%emt 0:00:00]} 15. Nxd4 {[%eval 1,0] [%emt 0:00:00]} exd4 {[%eval 4,0] [%emt 0:00:00]} 16. Nd5 {[%eval 8,0] [%emt 0:00:00]} Bd8 {[%eval 0,0] [%emt 0:00:00]} 17. Rad1 {[%eval 8,0] [%emt 0:00:00]} c6 {[%eval 2,0] [%emt 0:00:00]} 18. Nf4 {[%eval 8,0] [%emt 0:00:00]} c5 {[%eval 13,0] [%emt 0:00:00]} 19. Nd5 {[%eval 8,0] [%emt 0:00:00]} Be6 {[%eval 9,0] [%emt 0:00:00]} 20. f4 {[%eval 54,0] [%emt 0:00:00]} Bxd5 {[%eval 0,0] [%emt 0:00:00]} 21. exd5 {[%eval 13,0] [%emt 0:00:00]} Bc7 {[%eval 0,0] [%emt 0:00:00]} 22. Kf2 {[%eval 2,0] [%emt 0:00:00]} Bd6 {[%eval 0,0] [%emt 0:00:00]} 23. Bf1 {[%eval 0,0] [%emt 0:00:00]} Kf8 {[%eval 0,0] [%emt 0:00:00]} 24. Bd3 {[%eval 0,0] [%emt 0:00:00]} Rxe1 {[%eval 0,0] [%emt 0:00:00]} 25. Rxe1 {[%eval 0,0] [%emt 0:00:00]} Re8 {[%eval 0,0] [%emt 0:00:00]} 26. Rxe8+ {[%eval 0,0] [%emt 0:00:00]} Kxe8 {[%eval 0,0] [%emt 0:00:00]} 27. Kf3 {[%eval 0,0] [%emt 0:00:00]} Ke7 {[%eval 0,0] [%emt 0:00:00]} 28. g4 {[%eval 0,0] [%emt 0:00:00]} Kf6 {[%eval 0,0] [%emt 0:00:00]} 29. h4 {[%eval 0,0] [%emt 0:00:00]} Kg7 {[%eval 0,0] [%emt 0:00:00]} 30. Ke4 {[%eval 0,0] [%emt 0:00:00]} b6 {[%eval 0,0] [%emt 0:00:00]} 31. a4 {[%eval 0,0] [%emt 0:00:00]} a5 {[%eval 0,0] [%emt 0:00:00]} 32. b3 {[%eval 0,0] [%emt 0:00:00]} h6 {[%eval 0,0] [%emt 0:00:00]} 33. f5 {[%eval 0,0] [%emt 0:00:00]} g5 {[%eval 0,0] [%emt 0:00:00]} 34. hxg5 {[%eval 0,0] [%emt 0:00:00]} hxg5 {[%eval 0,0] [%emt 0:00:00]} 35. Bc2 {[%eval 0,0] [%emt 0:00:00]} f6 {[%eval 0,0] [%emt 0:00:00]} 36. Bd3 {[%eval 0,0] [%emt 0:00:00]} Kf8 {[%eval 0,0] [%emt 0:00:00]} 37. Bc2 {[%eval 0,0] [%emt 0:00:00]} Kg7 {[%eval 0,0] [%emt 0:00:00]} 38. Bd3 {[%eval 0,0] [%emt 0:00:00]} Kf8 {[%eval 0,0] [%emt 0:00:00]} 39. Bc2 {[%eval 0,0] [%emt 0:00:00]} Kg7 {[%eval 0,0] [%emt 0:00:00]} 40. Bd3 {[%eval 0,0] [%emt 0:00:00]} 1/2-1/2

[Event "Calgary int."]
[Site "Calgary CAN"]
[Date "2025.08.02"]
[Round "5.4"]
[White "Srinivasan, Hemant"]
[Black "Doknjas, Neil"]
[Result "0-1"]
[ECO "E46"]
[WhiteElo "2097"]
[BlackElo "2225"]
[WhiteFideId "-1"]
[WhiteFideId "-1"]
[PlyCount "111"]
[GameId "2206451229061120"]
[EventDate "2025.07.31"]
[EventType "swiss"]
[EventRounds "9"]
[EventCountry "CAN"]
[TimeControl "90+30"]

1. d4 {[%eval 17,0] [%emt 0:00:00]} Nf6 {[%eval 19,0] [%emt 0:00:00]} 2. c4 {[%eval 18,0] [%emt 0:00:00]} e6 {[%eval 14,0] [%emt 0:00:00]} 3. Nc3 {[%eval 9,0] [%emt 0:00:00]} Bb4 {[%eval 9,0] [%emt 0:00:00]} 4. e3 {[%eval 6,0] [%emt 0:00:00]} O-O {[%eval 11,0] [%emt 0:00:00]} 5. Nge2 {[%eval 0,0] [%emt 0:00:00]} c6 {[%eval 4,0] [%emt 0:00:00]} 6. a3 {[%eval 0,0] [%emt 0:00:00]} Ba5 {[%eval 5,0] [%emt 0:00:00]} 7. b4 {[%eval 0,0] [%emt 0:00:00]} Bc7 {[%eval 0,0] [%emt 0:00:00]} 8. d5 {[%eval 2,0] [%emt 0:00:00]} exd5 {[%eval 19,0] [%emt 0:00:00]} 9. cxd5 {[%emt 0:00:00]} d6 {[%emt 0:00:00]} 10. g3 {[%emt 0:00:00]} Qe8 {[%emt 0:00:00]} 11. Bg2 {[%emt 0:00:00]} a5 {[%emt 0:00:00]} 12. Bb2 {[%emt 0:00:00]} axb4 {[%emt 0:00:00]} 13. axb4 {[%emt 0:00:00]} Rxa1 {[%emt 0:00:00]} 14. Bxa1 {[%emt 0:00:00]} Na6 {[%emt 0:00:00]} 15. Qb1 {[%emt 0:00:00]} c5 {[%emt 0:00:00]} 16. bxc5 {[%emt 0:00:00]} Nxc5 {[%emt 0:00:00]} 17. O-O {[%emt 0:00:00]} Bg4 {[%emt 0:00:00]} 18. Nf4 {[%emt 0:00:00]} Nh5 {[%emt 0:00:00]} 19. Nb5 {[%emt 0:00:00]} Nxf4 {[%emt 0:00:00]} 20. exf4 {[%emt 0:00:00]} Qd7 {[%emt 0:00:00]} 21. Nxc7 {[%emt 0:00:00]} Qxc7 {[%emt 0:00:00]} 22. f5 {[%emt 0:00:00]} f6 {[%emt 0:00:00]} 23. f3 {[%emt 0:00:00]} Bh5 {[%emt 0:00:00]} 24. g4 {[%emt 0:00:00]} Bf7 {[%emt 0:00:00]} 25. f4 {[%emt 0:00:00]} Nd7 {[%emt 0:06:32]} 26. Kh1 {[%emt 0:00:00]} Qc5 {[%emt 0:00:34]} 27. Rd1 {[%emt 0:01:04]} Qe3 {[%emt 0:01:26]} 28. Qb4 {[%emt 0:00:58]} Nc5 {[%emt 0:02:03]} 29. Bd4 {[%emt 0:07:25]} Nd3 {[%emt 0:04:24]} 30. Bxe3 {[%emt 0:00:31]} Nxb4 {[%emt 0:00:01]} 31. g5 {[%emt 0:01:47]} Rc8 {[%emt 0:01:25]} 32. Kg1 {[%emt 0:00:38]} Rc3 {[%emt 0:00:47]} 33. Bd4 {[%emt 0:01:03]} Rd3 {[%emt 0:00:37]} 34. Rxd3 {[%emt 0:00:56]} Nxd3 {[%emt 0:00:02]} 35. gxf6 {[%emt 0:02:37]} Nxf4 {[%emt 0:00:12]} 36. Bf3 {[%emt 0:01:41]} gxf6 {[%emt 0:00:28]} 37. Bxf6 {[%emt 0:00:04]} Bxd5 {[%emt 0:00:20]} 38. Kf2 {[%emt 0:01:06]} Bxf3 {[%emt 0:01:11]} 39. Kxf3 {[%emt 0:00:04]} Kf7 {[%emt 0:00:19]} 40. Bd4 {[%emt 0:00:16]} Nd5 {[%emt 0:00:24]} 41. Ke4 {[%emt 0:00:49]} Nf6+ {[%emt 0:00:23]} 42. Kd3 {[%emt 0:00:34]} b5 {[%emt 0:00:11]} 43. Bb2 {[%emt 0:00:44]} Nd5 {[%emt 0:01:19]} 44. Kd4 {[%emt 0:00:36]} Ne7 {[%emt 0:00:15]} 45. Ke4 {[%emt 0:00:22]} b4 {[%emt 0:00:33]} 46. h4 {[%emt 0:01:02]} Nc6 {[%emt 0:01:00]} 47. Kd5 {[%emt 0:00:32]} Ne5 {[%emt 0:00:08]} 48. h5 {[%emt 0:00:31]} Nd3 {[%emt 0:00:17]} 49. Bd4 {[%emt 0:00:32]} b3 {[%emt 0:00:04]} 50. Kxd6 {[%emt 0:00:17]} b2 {[%emt 0:00:11]} 51. Bxb2 {[%emt 0:00:04]} Nxb2 {[%emt 0:00:05]} 52. Ke5 {[%emt 0:00:15]} h6 {[%emt 0:00:09]} 53. f6 {[%emt 0:00:45]} Nc4+ {[%emt 0:00:08]} 54. Kf5 {[%emt 0:00:30]} Nd6+ {[%emt 0:00:04]} 55. Ke5 {[%emt 0:00:15]} Ne8 {[%emt 0:00:04]} 56. Kd4 {[%emt 0:00:30]} 0-1

[Event "Calgary int."]
[Site "Calgary CAN"]
[Date "2025.08.02"]
[Round "6.2"]
[White "Thavandiran, Shiyam"]
[Black "Ivanov, Mike"]
[Result "1/2-1/2"]
[ECO "C11"]
[WhiteElo "2398"]
[BlackElo "2383"]
[WhiteFideId "-1"]
[WhiteFideId "-1"]
[PlyCount "58"]
[GameId "2206548369289216"]
[EventDate "2025.07.31"]
[EventType "swiss"]
[EventRounds "9"]
[EventCountry "CAN"]
[TimeControl "90+30"]

1. e4 {[%eval 17,0] [%emt 0:00:00]} e6 {[%eval 19,0] [%emt 0:00:00]} 2. d4 {[%eval 18,0] [%emt 0:00:00]} d5 {[%eval 14,0] [%emt 0:00:00]} 3. Nc3 {[%eval 9,0] [%emt 0:00:00]} Nf6 {[%eval 9,0] [%emt 0:00:00]} 4. e5 {[%eval 6,0] [%emt 0:00:00]} Nfd7 {[%eval 11,0] [%emt 0:00:00]} 5. Nce2 {[%eval 0,0] [%emt 0:00:00]} c5 {[%eval 4,0] [%emt 0:00:00]} 6. c3 {[%eval 0,0] [%emt 0:00:00]} Nc6 {[%eval 5,0] [%emt 0:00:00]} 7. h4 {[%eval 0,0] [%emt 0:00:00]} Qb6 {[%eval 0,0] [%emt 0:00:00]} 8. Nf3 {[%eval 5,0] [%emt 0:00:00]} cxd4 {[%eval 7,0] [%emt 0:00:00]} 9. cxd4 {[%eval 11,0] [%emt 0:00:00]} f6 {[%eval 55,0] [%emt 0:00:00]} 10. exf6 {[%eval 32,0] [%emt 0:00:00]} Nxf6 {[%eval 95,0] [%emt 0:00:00]} 11. Nc3 {[%eval 92,0] [%emt 0:00:00]} Bd6 {[%eval 72,0] [%emt 0:00:00]} 12. Bd3 {[%eval 77,0] [%emt 0:00:00]} Bd7 {[%eval 8,0] [%emt 0:00:00]} 13. O-O {[%eval 74,0] [%emt 0:00:00]} O-O {[%eval 72,0] [%emt 0:00:00]} 14. Be3 {[%eval 75,0] [%emt 0:00:00]} Rae8 {[%eval 68,0] [%emt 0:00:00]} 15. Ne5 {[%eval 75,0] [%emt 0:00:00]} Qd8 {[%eval 73,0] [%emt 0:00:00]} 16. f4 {[%eval 79,0] [%emt 0:00:00]} Bb4 {[%eval 75,0] [%emt 0:00:00]} 17. Qb3 {[%eval 69,0] [%emt 0:00:00]} Nxe5 {[%eval 94,0] [%emt 0:00:00]} 18. fxe5 {[%eval 72,0] [%emt 0:00:00]} Ng4 {[%eval 153,0] [%emt 0:00:00]} 19. Bg5 {[%eval 98,0] [%emt 0:00:00]} Qb6 {[%eval 99,0] [%emt 0:00:00]} 20. Ne2 {[%eval 105,0] [%emt 0:00:00]} Nxe5 {[%eval 108,0] [%emt 0:00:00]} 21. Bc2 {[%eval 53,0] [%emt 0:00:00]} Qb5 {[%eval 45,0] [%emt 0:00:00]} 22. dxe5 {[%eval 12,0] [%emt 0:00:42]} Bc5+ {[%eval 19,0] [%emt 0:00:00]} 23. Kh1 {[%eval 3,0] [%emt 0:00:53]} Qxe2 {[%eval 7,0] [%emt 0:00:13]} 24. Bd3 {[%eval 2,0] [%emt 0:02:54]} Qh5 {[%eval 2,0] [%emt 0:05:30]} 25. Qc2 {[%eval 7,0] [%emt 0:00:49]} Rc8 {[%eval 1,0] [%emt 0:01:10]} 26. Be2 {[%eval 13,0] [%emt 0:02:25]} Qe8 {[%eval 0,0] [%emt 0:00:08]} 27. Bd3 {[%eval 4,0] [%emt 0:00:48]} Qh5 {[%eval 22,0] [%emt 0:00:47]} 28. Be2 {[%eval -84,0] [%emt 0:00:08]} Qe8 {[%eval 31,0] [%emt 0:00:32]} 29. Bd3 {[%eval 46,0] [%emt 0:00:44]} Qh5 {[%eval 0,0] [%emt 0:03:14]} 1/2-1/2

[Event "Calgary int."]
[Site "Calgary CAN"]
[Date "2025.08.02"]
[Round "6.6"]
[White "Malek, Omid"]
[Black "Wu, Jonathan"]
[Result "1-0"]
[ECO "B94"]
[WhiteElo "2002"]
[BlackElo "2130"]
[WhiteFideId "-1"]
[WhiteFideId "-1"]
[PlyCount "69"]
[GameId "2206548369301504"]
[EventDate "2025.07.31"]
[EventType "swiss"]
[EventRounds "9"]
[EventCountry "CAN"]
[TimeControl "90+30"]

1. e4 {[%eval 17,0] [%emt 0:00:00]} c5 {[%eval 19,0] [%emt 0:00:00]} 2. Nf3 {[%eval 18,0] [%emt 0:00:00]} d6 {[%eval 14,0] [%emt 0:00:00]} 3. d4 {[%eval 9,0] [%emt 0:00:00]} cxd4 {[%eval 9,0] [%emt 0:00:00]} 4. Nxd4 {[%eval 6,0] [%emt 0:00:00]} Nf6 {[%eval 11,0] [%emt 0:00:00]} 5. Nc3 {[%eval 0,0] [%emt 0:00:00]} a6 {[%eval 4,0] [%emt 0:00:00]} 6. Bg5 {[%eval 0,0] [%emt 0:00:00]} Nbd7 {[%eval 5,0] [%emt 0:00:00]} 7. f4 {[%eval 0,0] [%emt 0:00:00]} Qc7 {[%eval 0,0] [%emt 0:00:00]} 8. Qe2 {[%eval 5,0] [%emt 0:00:00]} h6 {[%eval 7,0] [%emt 0:00:00]} 9. Bh4 {[%eval 11,0] [%emt 0:00:00]} e6 {[%eval 55,0] [%emt 0:00:00]} 10. O-O-O {[%eval 32,0] [%emt 0:00:00]} Be7 {[%eval 95,0] [%emt 0:00:00]} 11. Bg3 {[%eval 92,0] [%emt 0:00:00]} Nc5 {[%eval 72,0] [%emt 0:00:00]} 12. e5 {[%eval 77,0] [%emt 0:00:00]} dxe5 {[%eval 8,0] [%emt 0:00:00]} 13. fxe5 {[%eval 74,0] [%emt 0:00:00]} Nfd7 {[%eval 72,0] [%emt 0:00:00]} 14. Ne4 {[%eval 75,0] [%emt 0:00:00]} Nxe4 {[%eval 68,0] [%emt 0:00:00]} 15. Qxe4 {[%eval 75,0] [%emt 0:00:00]} Nc5 {[%eval 73,0] [%emt 0:00:00]} 16. Qg4 {[%eval 79,0] [%emt 0:00:00]} g6 {[%eval 75,0] [%emt 0:00:00]} 17. Bd3 {[%eval 69,0] [%emt 0:00:00]} Nxd3+ {[%eval 94,0] [%emt 0:00:00]} 18. Rxd3 {[%eval 72,0] [%emt 0:00:00]} b5 {[%eval 153,0] [%emt 0:00:00]} 19. Rf1 {[%eval 98,0] [%emt 0:00:00]} O-O {[%eval 99,0] [%emt 0:00:00]} 20. Bf4 {[%eval 105,0] [%emt 0:00:00]} Kg7 {[%eval 108,0] [%emt 0:00:00]} 21. Rh3 {[%eval 53,0] [%emt 0:00:00]} Rh8 {[%eval 45,0] [%emt 0:00:00]} 22. Bxh6+ {[%eval 12,0] [%emt 0:00:00]} Rxh6 {[%eval 19,0] [%emt 0:00:00]} 23. Rxf7+ {[%eval 3,0] [%emt 0:00:00]} Kxf7 {[%eval 7,0] [%emt 0:00:00]} 24. Rxh6 {[%eval 2,0] [%emt 0:00:00]} Qxe5 {[%eval 2,0] [%emt 0:00:00]} 25. Qxg6+ {[%eval 7,0] [%emt 0:00:00]} Kf8 {[%eval 1,0] [%emt 0:00:00]} 26. Nf3 {[%eval 13,0] [%emt 0:00:00]} Qg7 {[%eval 0,0] [%emt 0:02:06]} 27. Qh5 {[%eval 4,0] [%emt 0:00:00]} Bf6 {[%eval 22,0] [%emt 0:02:05]} 28. Rh7 {[%eval -84,0] [%emt 0:00:00]} Qg8 {[%eval 31,0] [%emt 0:01:21]} 29. Qc5+ {[%eval 46,0] [%emt 0:00:00]} Ke8 {[%eval 0,0] [%emt 0:00:31]} 30. Qc6+ {[%eval 1,0] [%emt 0:00:00]} Kd8 {[%eval 0,0] [%emt 0:01:23]} 31. Qc7+ {[%eval 0,0] [%emt 0:00:00]} Ke8 {[%eval 3,0] [%emt 0:00:07]} 32. Ne5 {[%eval 5,0] [%emt 0:00:00]} Qf8 {[%eval 0,0] [%emt 0:07:00]} 33. Qc6+ {[%eval 7,0] [%emt 0:00:00]} Kd8 {[%eval 0,0] [%emt 0:00:03]} 34. Rd7+ {[%eval 7,0] [%emt 0:00:00]} Ke8 {[%eval 4,0] [%emt 0:00:24]} 35. Rf7+ {[%eval 1,0] [%emt 0:00:00]} 1-0

[Event "Calgary int."]
[Site "Calgary CAN"]
[Date "2025.08.03"]
[Round "7.1"]
[White "Ivanov, Mike"]
[Black "Mikhalevski, Victor"]
[Result "1/2-1/2"]
[ECO "C48"]
[WhiteElo "2383"]
[BlackElo "2499"]
[WhiteFideId "-1"]
[WhiteFideId "-1"]
[PlyCount "61"]
[GameId "2205094594224128"]
[EventDate "2025.07.31"]
[EventType "swiss"]
[EventRounds "9"]
[EventCountry "CAN"]
[TimeControl "90+30"]

1. e4 {[%eval 18,0] [%emt 0:00:00]} e5 {[%eval 22,0] [%emt 0:00:00]} 2. Nf3 {[%eval 13,0] [%emt 0:00:00]} Nc6 {[%eval 21,0] [%emt 0:00:00]} 3. Nc3 {[%eval 6,0] [%emt 0:00:00]} Nf6 {[%eval 7,0] [%emt 0:00:00]} 4. Bb5 {[%eval 4,0] [%emt 0:00:00]} Nd4 {[%eval 5,0] [%emt 0:00:00]} 5. Nxd4 {[%eval 3,0] [%emt 0:00:00]} exd4 {[%eval 7,0] [%emt 0:00:00]} 6. e5 {[%eval 3,0] [%emt 0:00:00]} dxc3 {[%eval 3,0] [%emt 0:00:00]} 7. exf6 {[%eval 8,0] [%emt 0:00:00]} Qxf6 {[%eval 2,0] [%emt 0:00:00]} 8. dxc3 {[%eval 3,0] [%emt 0:00:00]} Bc5 {[%eval 2,0] [%emt 0:00:00]} 9. Qe2+ {[%eval 8,0] [%emt 0:00:00]} Qe6 {[%eval 2,0] [%emt 0:00:00]} 10. O-O {[%eval 2,0] [%emt 0:00:00]} O-O {[%eval 6,0] [%emt 0:00:00]} 11. Bf4 {[%eval 1,0] [%emt 0:00:00]} d6 {[%eval 14,0] [%emt 0:00:00]} 12. Rfe1 {[%eval 11,0] [%emt 0:00:00]} Qf6 {[%eval 14,0] [%emt 0:00:00]} 13. Bg3 {[%eval 12,0] [%emt 0:00:00]} Be6 {[%eval 13,0] [%emt 0:00:00]} 14. Qh5 {[%eval 1,0] [%emt 0:00:00]} Qf5 {[%eval 1,0] [%emt 0:00:00]} 15. Qxf5 {[%eval 3,0] [%emt 0:00:00]} Bxf5 {[%eval 1,0] [%emt 0:00:00]} 16. Bd3 {[%eval 8,0] [%emt 0:00:00]} Bxd3 {[%eval 0,0] [%emt 0:00:00]} 17. cxd3 {[%eval 13,0] [%emt 0:00:00]} Rfe8 {[%eval 0,0] [%emt 0:00:00]} 18. Kf1 {[%eval 6,0] [%emt 0:00:00]} Kf8 {[%eval 16,0] [%emt 0:00:00]} 19. a4 {[%eval 5,0] [%emt 0:00:00]} a6 {[%eval 14,0] [%emt 0:00:00]} 20. Rxe8+ {[%eval 1,0] [%emt 0:00:00]} Kxe8 {[%eval 1,0] [%emt 0:00:00]} 21. d4 {[%eval 0,0] [%emt 0:00:00]} Ba7 {[%eval 12,0] [%emt 0:00:00]} 22. Re1+ {[%eval 0,0] [%emt 0:00:00]} Kd7 {[%eval 6,0] [%emt 0:00:00]} 23. Bf4 {[%eval 17,0] [%emt 0:00:00]} Re8 {[%eval 22,0] [%emt 0:00:00]} 24. Rxe8 {[%eval 0,0] [%emt 0:00:00]} Kxe8 {[%eval 0,0] [%emt 0:00:00]} 25. g4 {[%eval 0,0] [%emt 0:00:00]} Kd7 {[%eval 0,0] [%emt 0:00:00]} 26. d5 {[%eval 1,0] [%emt 0:00:00]} b5 {[%eval 0,0] [%emt 0:00:00]} 27. axb5 {[%eval 0,0] [%emt 0:00:00]} axb5 {[%eval 0,0] [%emt 0:00:00]} 28. Ke2 {[%eval 0,0] [%emt 0:00:00]} c6 {[%eval 0,0] [%emt 0:00:00]} 29. dxc6+ {[%eval 0,0] [%emt 0:00:00]} Kxc6 {[%eval 0,0] [%emt 0:00:00]} 30. f3 {[%eval 0,0] [%emt 0:00:00]} d5 {[%eval 0,0] [%emt 0:00:00]} 31. Kd3 {[%eval 0,0] [%emt 0:00:00]} 1/2-1/2

[Event "Calgary int."]
[Site "Calgary CAN"]
[Date "2025.08.04"]
[Round "9.1"]
[White "Taylor, Tristan"]
[Black "Mikhalevski, Victor"]
[Result "1/2-1/2"]
[ECO "B90"]
[WhiteElo "1973"]
[BlackElo "2499"]
[WhiteFideId "-1"]
[WhiteFideId "-1"]
[PlyCount "97"]
[GameId "2207180908208128"]
[EventDate "2025.07.31"]
[EventType "swiss"]
[EventRounds "9"]
[EventCountry "CAN"]
[TimeControl "90+30"]

1. e4 {[%eval 18,0] [%emt 0:00:00]} c5 {[%eval 25,0] [%emt 0:00:00]} 2. Nf3 {[%eval 2,0] [%emt 0:00:00]} d6 {[%eval 31,0] [%emt 0:00:00]} 3. d4 {[%eval 22,0] [%emt 0:00:00]} cxd4 {[%eval 19,0] [%emt 0:00:00]} 4. Nxd4 {[%eval 18,0] [%emt 0:00:00]} Nf6 {[%eval 31,0] [%emt 0:00:00]} 5. Nc3 {[%eval 32,0] [%emt 0:00:00]} a6 {[%eval 28,0] [%emt 0:00:00]} 6. h3 {[%eval 16,0] [%emt 0:00:00]} e5 {[%eval 21,0] [%emt 0:00:00]} 7. Nf3 {[%eval 7,0] [%emt 0:00:00]} h6 {[%eval 14,0] [%emt 0:00:00]} 8. Bc4 {[%eval 8,0] [%emt 0:00:00]} Be6 {[%eval 13,0] [%emt 0:00:00]} 9. Bb3 {[%eval 9,0] [%emt 0:00:00]} Nc6 {[%eval 15,0] [%emt 0:00:00]} 10. Be3 {[%eval 11,0] [%emt 0:00:00]} Rc8 {[%eval 14,0] [%emt 0:00:00]} 11. O-O {[%eval 18,0] [%emt 0:00:00]} Na5 {[%eval 1,0] [%emt 0:00:00]} 12. Nh4 {[%eval 44,0] [%emt 0:00:00]} Nxb3 {[%eval 54,0] [%emt 0:00:00]} 13. axb3 {[%eval 44,0] [%emt 0:00:00]} Nxe4 {[%eval 45,0] [%emt 0:00:00]} 14. Nxe4 {[%eval 38,0] [%emt 0:00:00]} d5 {[%eval 36,0] [%emt 0:00:00]} 15. Nf3 {[%eval 35,0] [%emt 0:00:00]} dxe4 {[%eval 21,0] [%emt 0:00:00]} 16. Nxe5 {[%eval 42,0] [%emt 0:00:00]} Qxd1 {[%eval 34,0] [%emt 0:00:00]} 17. Rfxd1 {[%eval 39,0] [%emt 0:00:00]} Rxc2 {[%eval 23,0] [%emt 0:00:00]} 18. Ra4 {[%eval 39,0] [%emt 0:00:00]} Rxb2 {[%eval 11,0] [%emt 0:00:00]} 19. Rxe4 {[%eval 17,0] [%emt 0:00:00]} Rxb3 {[%eval 3,0] [%emt 0:00:00]} 20. Ng6 {[%eval 43,0] [%emt 0:00:00]} fxg6 {[%eval 7,0] [%emt 0:00:00]} 21. Rxe6+ {[%eval 0,0] [%emt 0:00:00]} Kf7 {[%eval 2,0] [%emt 0:00:00]} 22. Re4 {[%eval 0,0] [%emt 0:00:00]} Kg8 {[%eval 0,0] [%emt 0:00:00]} 23. Rd7 {[%eval 0,0] [%emt 0:00:00]} g5 {[%eval 0,0] [%emt 0:00:00]} 24. Re8 {[%eval 0,0] [%emt 0:00:00]} Kh7 {[%eval 0,0] [%emt 0:00:00]} 25. Bd4 {[%eval 0,0] [%emt 0:00:00]} Rb1+ {[%eval 0,0] [%emt 0:00:56]} 26. Kh2 {[%eval 0,0] [%emt 0:00:00]} Bd6+ {[%eval 0,0] [%emt 0:00:05]} 27. g3 {[%eval 0,0] [%emt 0:00:00]} Rxe8 {[%eval 0,0] [%emt 0:00:08]} 28. Rxg7+ {[%eval 0,0] [%emt 0:00:00]} Kh8 {[%eval 0,0] [%emt 0:00:01]} 29. Rxb7+ {[%eval 0,0] [%emt 0:00:00]} Be5 {[%eval 0,0] [%emt 0:06:03]} 30. Bxe5+ {[%eval 0,0] [%emt 0:00:00]} Rxe5 {[%eval 0,0] [%emt 0:00:03]} 31. Rxb1 {[%eval 0,0] [%emt 0:00:00]} Rf5 {[%eval 0,0] [%emt 0:01:30]} 32. f4 {[%eval 0,0] [%emt 0:00:00]} Rb5 {[%eval 0,0] [%emt 0:00:55]} 33. Ra1 {[%eval 0,0] [%emt 0:00:00]} a5 {[%eval 0,0] [%emt 0:00:14]} 34. fxg5 {[%eval 2,0] [%emt 0:00:00]} Rxg5 {[%eval 0,0] [%emt 0:01:44]} 35. g4 {[%eval 0,0] [%emt 0:00:00]} Rc5 {[%eval 0,0] [%emt 0:00:20]} 36. Kg3 {[%eval 0,0] [%emt 0:00:00]} Kg7 {[%eval 0,0] [%emt 0:00:03]} 37. Rb1 {[%eval 0,0] [%emt 0:00:00]} Rc7 {[%eval 0,0] [%emt 0:01:27]} 38. Ra1 {[%eval 0,0] [%emt 0:00:00]} Rc5 {[%eval 0,0] [%emt 0:00:28]} 39. Rb1 {[%eval 0,0] [%emt 0:00:00]} Rc3+ {[%eval 0,0] [%emt 0:00:32]} 40. Kf4 {[%eval 0,0] [%emt 0:00:00]} a4 {[%eval 0,0] [%emt 0:01:57]} 41. Rb7+ {[%eval 0,0] [%emt 0:00:00]} Kf6 {[%eval 0,0] [%emt 0:01:41]} 42. Rb6+ {[%eval 0,0] [%emt 0:00:00]} Kg7 {[%eval 0,0] [%emt 0:00:17]} 43. Rb7+ {[%eval 0,0] [%emt 0:00:00]} Kf6 {[%eval 0,0] [%emt 0:00:04]} 44. Rb6+ {[%eval 0,0] [%emt 0:00:00]} Kf7 {[%eval 0,0] [%emt 0:01:18]} 45. Rxh6 {[%eval 0,0] [%emt 0:00:00]} a3 {[%eval 0,0] [%emt 0:00:01]} 46. Ra6 {[%eval 0,0] [%emt 0:00:00]} Rxh3 {[%eval 0,0] [%emt 0:00:06]} 47. g5 {[%eval 0,0] [%emt 0:00:00]} Rb3 {[%eval 0,0] [%emt 0:00:13]} 48. Kf5 {[%eval 0,0] [%emt 0:00:00]} Rf3+ {[%eval 0,0] [%emt 0:00:13]} 49. Ke4 {[%eval 0,0] [%emt 0:00:00]} 1/2-1/2

[Event "Carnaval"]
[Site "Quebec CAN"]
[Date "2025.02.21"]
[Round "1"]
[White "Berube, Maximilien"]
[Black "Adam, Rafael"]
[Result "0-1"]
[ECO "B11"]
[WhiteElo "1919"]
[BlackElo "2289"]
[WhiteFideId "-1"]
[WhiteFideId "-1"]
[PlyCount "134"]
[GameId "2151043325150129"]
[EventDate "2025.02.21"]
[EventType "swiss"]
[EventRounds "5"]
[EventCountry "CAN"]
[TimeControl "5400+30"]

1. e4 c6 2. d4 d5 3. Nc3 dxe4 4. Nxe4 Nf6 5. Qd3 Nbd7 6. Nf3 Nxe4 7. Qxe4 Nf6 8. Qh4 Bf5 9. c3 e6 10. Be2 Be7 11. Bg5 Qb6 12. O-O-O Qa5 13. Bc4 Ba3 14. Bd2 Ne4 15. Qf4 Nxf2 16. Rdf1 Qa4 17. Bb3 Nd3+ 18. Kd1 Nxb2+ 19. Ke1 Nd3+ 20. Kd1 Qxb3+ 21. axb3 Nxf4 22. Bxf4 Ke7 23. Nh4 Be4 24. Re1 f5 25. Nf3 Bxf3+ 26. gxf3 Bd6 27. Be5 Rhg8 28. h4 Bxe5 29. Rxe5 Kf6 30. Kd2 Rad8 31. Rhe1 Rge8 32. Kd3 Re7 33. c4 Kf7 34. Kc3 Rd6 35. f4 Red7 36. Rd1 Kf6 37. Rd2 g6 38. c5 Rd5 39. Re3 Re7 40. Ra2 Red7 41. Rd3 b6 42. b4 Rb7 43. Ra6 Rdd7 44. Rd2 h6 45. Re2 Re7 46. Ra1 Rg7 47. Rae1 Rbc7 48. b5 bxc5 49. bxc6 cxd4+ 50. Kxd4 Rg8 51. Kc5 Rd8 52. Re5 Rd2 53. R1e2 Rd1 54. Re1 Rd2 55. R1e2 Rd3 56. R2e3 Rd8 57. Rb3 g5 58. hxg5+ hxg5 59. Rb7 Rxb7 60. cxb7 gxf4 61. Re1 e5 62. Ra1 f3 63. Rxa7 Rb8 64. Kc6 f2 65. Ra1 e4 66. Kd5 e3 67. Kd4 e2 0-1